[Event "33rd ECCC Open 2017"]
[Site "Antalya"]
[Date "2017.10.11"]
[Round "4"]
[White "Vogel, Constantin"]
[Black "Fox, Anthony"]
[Result "1/2-1/2"]
[ECO "A14"]
[WhiteElo "1963"]
[BlackElo "2016"]
[Annotator "NA"]
[PlyCount "146"]
[EventType "team-tourn"]
[EventCountry "TUR"]
[SourceTitle "playchess.com"]
[Source "ChessBase"]
[SourceQuality "1"]
[WhiteTeam "Benildus"]
[BlackTeam "Adare"]
[TimeControl "40/5400+30:1800+30"]

1. c4 {[%emt 0:00:30]} e6 {[%emt 0:01:00]} 2. g3 {[%emt 0:00:30]} d5 {[%emt 0:00:30]} 3. Bg2 {[%emt 0:00:00]} Nf6 {[%emt 0:00:00]} 4. Nf3 {[%emt 0:00:00]} Be7 {[%emt 0:00:00]} 5. O-O {[%emt 0:00:30]} O-O {[%emt 0:00:30]} 6. b3 {[%emt 0:00:00]} c5 {[%emt 0:01:30]} 7. e3 {[%emt 0:00:00]} Nc6 {[%emt 0:00:30]} 8. Bb2 {[%emt 0:00:30]} d4 {[%emt 0:03:30]} 9. exd4 {[%emt 0:00:30]} cxd4 {[%emt 0:00:30]} 10. Re1 {[%emt 0:00:00]} Ne8 {[%emt 0:05:30]} 11. d3 {[%emt 0:03:00]} f6 {[%emt 0:00:30] A14: English Opening: 1...e6 with b3 by White} 12. Nbd2 {[%emt 0:03:30]} e5 {[%emt 0:01:30]} 13. a3 {[%emt 0:00:30]} (13. Ne4 Nc7 14. c5 Be6 15. Nfd2 Bd5 16. Nc4 Ne6 17. Ba3 b5 18. Ncd6 Bxd6 19. cxd6 {0-1 (67) Caruana,F (2795)-Nakamura,H (2787) Saint Louis 2016}) 13... a5 {[%emt 0:00:00]} 14. Nh4 {[%emt 0:09:30]} g5 {[%emt 0:10:00]} 15. Bd5+ {[%emt 0:02:30]} Kg7 {[%emt 0:02:30]} 16. Ng2 {[%emt 0:02:30]} Nc7 {[%emt 0:02:30]} 17. Be4 {[%emt 0:02:30]} h6 $146 {[%emt 0:14:30]} ({Predecessor:} 17... Ne6 18. Qh5 Rh8 19. f4 Nc5 20. fxg5 Nxe4 {1-0 (28) Vishnu,P (2340)-Padurariu,I (2164) Vlissingen 2011}) 18. f4 {[%emt 0:08:30]} Bd6 {[%emt 0:05:30]} 19. Bf3 {[%emt 0:26:30]} Rb8 {[%emt 0:05:30]} 20. Ne4 {[%emt 0:01:30]} Be7 {[%emt 0:02:30]} 21. Nf2 {[%emt 0:05:30]} Bd6 {[%emt 0:02:30]} 22. h4 {[%emt 0:02:30]} Ne6 {[%emt 0:12:30]} 23. Bc1 {[%emt 0:04:30]} exf4 {[%emt 0:02:30]} 24. gxf4 {[%emt 0:00:30]} Nxf4 {[%emt 0:01:30]} 25. Bxf4 {[%emt 0:00:30]} gxf4 {[%emt 0:01:30]} 26. Be4 {[%emt 0:05:30]} f5 {[%emt 0:02:30]} 27. Bd5 {[%emt 0:01:30]} f3 {[%emt 0:05:00]} 28. Qxf3 {[%emt 0:00:56]} Ne5 {[%emt 0:02:18]} 29. Qh5 {[%emt 0:04:18]} Ng6 {[%emt 0:03:40]} 30. Ra2 {[%emt 0:02:48]} Bd7 {[%emt 0:00:08]} 31. Rae2 {[%emt 0:02:15]} Rf6 {[%emt 0:01:01]} 32. Nh3 {[%emt 0:00:24]} Qf8 {[%emt 0:01:24]} 33. Qf3 {[%emt 0:02:14]} b5 {[%emt 0:06:08]} 34. h5 {[%emt 0:00:21]} Ne7 {[%emt 0:01:05]} 35. Ngf4 {[%emt 0:00:42]} Nxd5 {[%emt 0:01:13]} 36. cxd5 {[%emt 0:00:27]} Bxa3 {[%emt 0:03:23]} 37. Ng6 {[%emt 0:02:19]} Rxg6+ {[%emt 0:01:11]} 38. hxg6 {[%emt 0:00:30]} Re8 {[%emt 0:00:40]} 39. Rxe8 {[%emt 0:00:42]} Bxe8 {[%emt 0:00:30]} 40. Nf4 {[%emt 0:00:00]} Bd7 {[%emt 0:01:19]} 41. Re6 {[%emt 0:10:04]} Kg8 {[%emt 0:01:30]} 42. g7 {[%emt 0:09:33]} Qd8 {[%emt 0:08:30]} 43. Rg6 {[%emt 0:00:27]} Qh4 {[%emt 0:03:02]} 44. Ng2 {[%emt 0:02:09]} Qe7 {[%emt 0:04:33]} 45. Rxh6 {[%emt 0:02:21]} Qg5 {[%emt 0:08:12]} 46. Qh3 {[%emt 0:01:28]} Qc1+ {[%emt 0:00:30]} 47. Kh2 {[%emt 0:00:30]} Qc7+ {[%emt 0:00:21]} 48. Qg3 {[%emt 0:01:27]} Qxg3+ {[%emt 0:01:01]} 49. Kxg3 {[%emt 0:00:30]} Kxg7 {[%emt 0:00:00]} 50. Ra6 {[%emt 0:00:00]} Kf7 {[%emt 0:03:01]} 51. Rxa5 {[%emt 0:00:11]} Bd6+ {[%emt 0:00:00]} 52. Kf3 {[%emt 0:00:39]} Kf6 {[%emt 0:00:35]} 53. Nf4 {[%emt 0:01:10]} (53. Ra8 $142) 53... Ke5 $2 {[%emt 0:01:02]} (53... Be8 54. Ra6 Ke5) 54. Ra7 {[%emt 0:00:33]} Be8 {[%emt 0:00:58]} 55. Rh7 {[%emt 0:01:57]} Ba3 {[%emt 0:01:16]} (55... Bc5 {keeps fighting.} 56. Rh8 Bf7) 56. Ne6 {[%emt 0:03:04]} Bg6 {[%emt 0:00:58]} 57. Rb7 {[%emt 0:01:54]} Bh5+ {[%emt 0:00:31]} 58. Kg3 {[%emt 0:00:12]} Bd6 {[%emt 0:02:22]} (58... Kxd5 $16 {might work better.} 59. Rb6 Bd6+ 60. Nf4+ Bxf4+ 61. Kxf4 Kc5) 59. Rxb5 {[%emt 0:04:11]} f4+ {[%emt 0:00:19]} 60. Kf2 {[%emt 0:01:12]} Bg6 {[%emt 0:00:42]} (60... Be8 {keeps fighting.} 61. Ra5 Bb4) 61. Rb6 $2 {[%emt 0:01:03]} (61. Ng5 $18 {and the rest is easy.}) 61... Bxd3 {[%emt 0:00:24]} 62. Nxf4 {[%emt 0:01:23]} Be4 {[%emt 0:00:21] [#]} 63. Ke2 $1 {[%emt 0:01:18]} Bc5 {[%emt 0:00:35]} (63... Ba3 $16) 64. Rb5 {[%emt 0:00:32]} Be7 {[%emt 0:00:39]} 65. Nd3+ {[%emt 0:00:39]} Kd6 $1 $11 {[%emt 0:00:18]} 66. Nb4 {[%emt 0:01:44]} Bg5 {[%emt 0:00:32]} 67. Nd3 $2 {[%emt 0:00:55]} (67. Rb6+ $18 Kc5 68. Re6) 67... Be3 $2 {[%emt 0:00:36]} 68. Nb2 {[%emt 0:00:40]} Bxd5 {[%emt 0:00:33]} 69. Nc4+ {[%emt 0:00:10]} Kc6 {[%emt 0:00:27]} 70. Rb6+ $2 {[%emt 0:00:54]} (70. Ra5 $18) 70... Kc5 {[%emt 0:00:11]} 71. Nxe3 {[%emt 0:00:08]} Kxb6 {[%emt 0:00:55]} 72. Nxd5+ {[%emt 0:00:09]} Kc5 $11 {[%emt 0:00:03]} 73. Nf4 {[%emt 0:01:19]} Kb4 $11 {[%emt 0:00:09]} 1/2-1/2

[Event "33rd ECCC Open 2017"]
[Site "Antalya"]
[Date "2017.10.11"]
[Round "4"]
[White "Ingason, Sigurdur"]
[Black "Laakso, Harri"]
[Result "1/2-1/2"]
[ECO "E73"]
[WhiteElo "1809"]
[BlackElo "2157"]
[Annotator "NA"]
[PlyCount "60"]
[EventType "team-tourn"]
[EventCountry "TUR"]
[SourceTitle "playchess.com"]
[Source "ChessBase"]
[SourceQuality "1"]
[WhiteTeam "Viking"]
[BlackTeam "Etela-Vantaan"]
[TimeControl "40/5400+30:1800+30"]

1. d4 {[%emt 0:01:30]} Nf6 {[%emt 0:01:00]} 2. c4 {[%emt 0:00:30]} g6 {[%emt 0:00:30]} 3. Nc3 {[%emt 0:00:30]} Bg7 {[%emt 0:00:30]} 4. e4 {[%emt 0:00:00]} d6 {[%emt 0:00:00]} 5. Be2 {[%emt 0:00:00]} O-O {[%emt 0:00:00]} 6. Bg5 {[%emt 0:00:00]} h6 {[%emt 0:04:30]} 7. Be3 {[%emt 0:00:00]} e5 {[%emt 0:01:30]} 8. d5 {[%emt 0:01:30]} Na6 {[%emt 0:03:30]} 9. Qd2 {[%emt 0:00:30]} Kh7 {[%emt 0:01:30]} 10. h3 {[%emt 0:13:30] E73: King's Indian: Averbakh Variation without 6...c5} (10. f3 Bd7 11. g4 Nc5 12. h4 h5 13. Bg5 Qe8 14. O-O-O Rh8 15. Rf1 Kg8 16. Bxf6 Bxf6 17. gxh5 Rxh5 18. f4 Rxh4 19. Rxh4 Bxh4 20. Nf3 Bg3 21. fxe5 dxe5 {½-½ (21) Chatalbashev,B (2550)-Lie,E (2429) Kragero 2017}) 10... Nc5 {[%emt 0:04:30]} 11. Qc2 {[%emt 0:05:30]} a5 {[%emt 0:02:30]} 12. Nf3 {[%emt 0:00:30]} Nh5 {[%emt 0:08:30]} 13. Qd2 $146 {[%emt 0:12:30]} ({Predecessor:} 13. g3 b6 14. O-O-O f5 15. Nh4 f4 16. Bxh5 gxh5 17. Bxc5 bxc5 {0-1 (56) Coto Aller,M-Gonzalez Vazquez,F Asturias 1993}) 13... Qe7 {[%emt 0:12:30]} 14. g4 {[%emt 0:06:30]} Nf4 {[%emt 0:01:30]} 15. Bxf4 {[%emt 0:02:30]} (15. Bxc5 $11 {remains equal.} dxc5 16. O-O-O) 15... exf4 {[%emt 0:00:30]} 16. Qxf4 {[%emt 0:00:30]} Bxc3+ {[%emt 0:09:30]} 17. bxc3 {[%emt 0:00:30]} Qxe4 {[%emt 0:01:30]} 18. Qxe4 {[%emt 0:00:30]} Nxe4 {[%emt 0:00:00]} 19. Rc1 {[%emt 0:01:30]} Kg7 {[%emt 0:02:00]} 20. Nd2 $15 {[%emt 0:02:30]} Re8 {[%emt 0:03:30]} 21. Nxe4 {[%emt 0:01:30]} Rxe4 {[%emt 0:00:30]} 22. Kd2 {[%emt 0:02:30]} Bd7 {[%emt 0:01:30]} 23. Rce1 {[%emt 0:04:30]} Rae8 {[%emt 0:02:30]} 24. Rhg1 {[%emt 0:06:30]} b6 {[%emt 0:08:30]} 25. Rg3 {[%emt 0:02:30]} Bc8 {[%emt 0:05:30]} 26. Re3 {[%emt 0:01:30]} f5 {[%emt 0:04:30]} 27. Bf3 {[%emt 0:09:30]} Rxe3 {[%emt 0:01:30]} 28. fxe3 {[%emt 0:01:30]} Kf6 {[%emt 0:01:00]} 29. Rg1 {[%emt 0:02:30]} Re7 {[%emt 0:03:20]} 30. Rg2 {[%emt 0:02:04]} Bd7 {[%emt 0:04:18]} 1/2-1/2

[Event "33rd ECCC Open 2017"]
[Site "Antalya"]
[Date "2017.10.11"]
[Round "4"]
[White "Aslan, Lina"]
[Black "Delaney, Killian"]
[Result "1-0"]
[ECO "B17"]
[WhiteElo "1535"]
[BlackElo "2202"]
[Annotator "NA"]
[PlyCount "55"]
[EventType "team-tourn"]
[EventCountry "TUR"]
[SourceTitle "playchess.com"]
[Source "ChessBase"]
[SourceQuality "1"]
[WhiteTeam "Hatay"]
[BlackTeam "Gonzaga"]
[TimeControl "40/5400+30:1800+30"]

1. e4 {[%emt 0:00:30]} c6 {[%emt 0:01:00]} 2. d4 {[%emt 0:00:30]} d5 {[%emt 0:00:00]} 3. Nc3 {[%emt 0:00:00]} dxe4 {[%emt 0:00:00]} 4. Nxe4 {[%emt 0:00:00]} Nd7 {[%emt 0:00:30]} 5. Nf3 {[%emt 0:02:30]} Ngf6 {[%emt 0:00:30]} 6. Nxf6+ {[%emt 0:00:30]} Nxf6 {[%emt 0:00:30]} 7. Bd3 {[%emt 0:01:30]} Bg4 {[%emt 0:01:30]} 8. c3 {[%emt 0:01:30]} e6 {[%emt 0:00:30]} 9. O-O {[%emt 0:02:30]} Bd6 {[%emt 0:00:30] B17: Caro-Kann-Verteidigung} 10. h3 {[%emt 0:01:30]} Bh5 {[%emt 0:00:30]} 11. Bg5 {[%emt 0:01:30]} (11. Re1 O-O 12. Bg5 {1-0 (32) Kryvoruchko,Y (2640)-Berczes,D (2535) Cappelle-la-Grande 2011}) 11... Qc7 {[%emt 0:02:30]} 12. Qe2 {[%emt 0:07:30]} Bf4 {[%emt 0:21:30]} 13. Bxf4 {[%emt 0:10:30]} Qxf4 {[%emt 0:00:30]} 14. Qe5 {[%emt 0:05:30]} Qxe5 $146 {[%emt 0:01:30]} 15. Nxe5 {[%emt 0:00:30]} Nd5 {[%emt 0:00:30]} 16. Rfe1 {[%emt 0:01:30]} Bg6 {[%emt 0:00:30]} 17. Rad1 {[%emt 0:06:30]} Bxd3 {[%emt 0:02:30]} 18. Rxd3 {[%emt 0:02:30]} Rd8 {[%emt 0:01:30]} 19. a3 {[%emt 0:07:30]} f6 {[%emt 0:01:30]} 20. Nc4 {[%emt 0:03:30]} Kf7 {[%emt 0:03:30]} 21. Na5 {[%emt 0:02:30]} Rd7 {[%emt 0:02:30]} 22. c4 $15 {[%emt 0:02:30]} Nf4 {[%emt 0:00:30]} 23. Rdd1 {[%emt 0:00:30]} Rhd8 {[%emt 0:01:30]} 24. Nb3 {[%emt 0:13:30]} e5 {[%emt 0:01:30]} 25. Nc5 {[%emt 0:06:40]} Rxd4 {[%emt 0:00:30]} 26. Rxd4 {[%emt 0:00:28]} Rxd4 {[%emt 0:00:00]} 27. Nxb7 {[%emt 0:00:40]} Rxc4 {[%emt 0:00:00]} 28. Nd6+ {[%emt 0:00:00]} 1-0

[Event "33rd ECCC Open 2017"]
[Site "Antalya"]
[Date "2017.10.11"]
[Round "4"]
[White "Bereketoglu, Yagmur"]
[Black "O`Connor, Eddie"]
[Result "0-1"]
[ECO "C02"]
[WhiteElo "1333"]
[BlackElo "2023"]
[Annotator "NA"]
[PlyCount "68"]
[EventType "team-tourn"]
[EventCountry "TUR"]
[SourceTitle "playchess.com"]
[Source "ChessBase"]
[SourceQuality "1"]
[WhiteTeam "Hatay"]
[BlackTeam "Gonzaga"]
[TimeControl "40/5400+30:1800+30"]

1. e4 {[%emt 0:00:30]} e6 {[%emt 0:01:00]} 2. d4 {[%emt 0:00:00]} d5 {[%emt 0:00:00]} 3. e5 {[%emt 0:01:00]} c5 {[%emt 0:00:00]} 4. c3 {[%emt 0:00:30]} Nc6 {[%emt 0:00:30]} 5. Nf3 {[%emt 0:01:30]} Bd7 {[%emt 0:00:30]} 6. a3 {[%emt 0:02:30]} f6 {[%emt 0:01:30]} 7. g3 {[%emt 0:01:30]} fxe5 {[%emt 0:01:30]} 8. dxe5 {[%emt 0:02:30]} Nge7 {[%emt 0:02:30]} 9. Bf4 {[%emt 0:07:30]} Ng6 {[%emt 0:01:30]} 10. Qd2 {[%emt 0:00:30]} Be7 {[%emt 0:00:30]} 11. Bd3 {[%emt 0:05:30]} Qb6 $15 {[%emt 0:03:30]} (11... Nxf4 $19 12. gxf4 c4) 12. Bxg6+ {[%emt 0:06:30]} hxg6 {[%emt 0:00:30]} 13. Qc2 {[%emt 0:00:30]} O-O-O {[%emt 0:00:30]} 14. O-O {[%emt 0:00:30]} Be8 {[%emt 0:00:30]} 15. b4 {[%emt 0:00:30]} Kb8 {[%emt 0:00:30]} 16. Nh4 {[%emt 0:00:30]} g5 {[%emt 0:10:30]} 17. Bxg5 {[%emt 0:08:30]} Bxg5 {[%emt 0:01:30]} 18. Nf3 {[%emt 0:08:30]} Be7 {[%emt 0:00:30]} 19. Nbd2 {[%emt 0:04:30]} c4 {[%emt 0:03:30]} 20. a4 {[%emt 0:04:30]} Qc7 {[%emt 0:01:30]} 21. b5 {[%emt 0:03:30]} Nxe5 {[%emt 0:00:30]} 22. Nxe5 {[%emt 0:01:30]} Qxe5 {[%emt 0:00:30]} 23. Rfe1 {[%emt 0:00:30]} Qh5 {[%emt 0:01:30]} 24. Nf1 {[%emt 0:01:30]} Bg6 {[%emt 0:01:30]} 25. Qb2 {[%emt 0:02:30]} Be4 {[%emt 0:01:30]} 26. Rxe4 {[%emt 0:05:30]} dxe4 {[%emt 0:00:30]} 27. a5 {[%emt 0:01:30]} Bc5 {[%emt 0:01:30]} 28. Re1 {[%emt 0:04:30]} Rdf8 {[%emt 0:00:30]} 29. Re2 {[%emt 0:00:30]} Rf3 {[%emt 0:02:30]} 30. a6 {[%emt 0:02:30]} b6 {[%emt 0:00:30]} 31. Kh1 {[%emt 0:01:30]} Rhf8 {[%emt 0:02:30]} 32. Qc2 {[%emt 0:01:30]} Rxf2 {[%emt 0:03:30]} 33. Rxf2 {[%emt 0:01:30]} Rxf2 {[%emt 0:00:30]} 34. Qxe4 {[%emt 0:00:30]} Rxf1+ {[%emt 0:01:30]} 0-1